Cogmind - Beta 17 @@@ ROGUE MODE // 2026.07.23 @ 19:20:20 Player: Trekki Result: Destroyed by H-71 Marshal with Heavy Mass Driver Performance ------------- Evolutions (5) 2500 Regions Visited (4) 800 Robots Destroyed (37) 185 Value Destroyed (1238) 1238 Prototype IDs (8) 160 Alien Tech Used (0) 0 Bonus (800) 800 TOTAL SCORE: 5683 Bonus ------- Registered with UFD 300 Met Optimus in HQ 500 Cogmind --------- Core Integrity 0/1000 Matter 203/300 Energy 40/100 System Corruption 19% Temperature Cool (9) Movement Core (50) Location -5/Factory Parts ------- > --- POWER (2) -------- (None) > --- PROPULSION (6) --- (None) > --- UTILITY (6) ------ (None) > --- WEAPON (3) ------- (None) > --- INVENTORY (5) ---- Improved Cooling System Medium Storage Unit Medium Matter Pod (0) Advanced Signal Interpreter DRS Beacon (Ready) Peak State ------------ > --- POWER ------------ Light Deuterium Engine Light Nuclear Core > --- PROPULSION ------- Aluminum Leg Flexi-carbon Leg Armored Leg Armored Leg Armored Leg VTOL Module > --- UTILITY ---------- Improved Cooling System Large Storage Unit Makeshift Salvage Targeting Computer Targeting Computer Medium Reactive Plating Improved Corruption Screen > --- WEAPON ----------- Heavy Gatling Laser Enhanced Gauss Cannon Powered Hammer > --- INVENTORY -------- Improved Heat Sink Improved Cooling System Medium Storage Unit Medium Matter Pod Improved Signal Interpreter Advanced Signal Interpreter Improved Heavy Armor Plating Advanced Shield Generator Point Defense System Improved Recalibrator Missile Launcher DRS Beacon [Rating: 71] Favorites ----------- Power Light Deuterium Engine Engine Light Deuterium Engine Power Core Light Nuclear Core Propulsion Aluminum Leg Treads Improved Treads Leg Aluminum Leg Wheel Wheel Flight Unit VTOL Module Utility Improved Terrain Scanner Device Improved Terrain Scanner Storage Small Storage Unit Processor Makeshift Salvage Targeting Computer Protection Medium Reactive Plating Weapon Small Laser Energy Gun Small Laser Energy Cannon Phase Cannon Ballistic Cannon Enhanced Gauss Cannon Launcher Missile Launcher Impact Weapon Powered Hammer Build | -11 -10 -10 -7 -5 ------- Run | Yrd Mat Sub Scr Fac Slots Evolved 10 | . . . . 10 Power 1 | . . . . 1 Propulsion 4 | . . . . 4 Utility 4 | . . . . 4 Weapon 1 | . . . . 1 Parts Attached 52 | 7 . . 16 29 Power 8 | 1 . . 4 3 Engine 7 | 1 . . 4 2 Core 1 | . . . . 1 Reactor . | . . . . . Propulsion 18 | 2 . . 7 9 Treads 1 | . . . . 1 Leg 15 | 2 . . 7 6 Wheel 1 | . . . . 1 Hover . | . . . . . Flight 1 | . . . . 1 Utility 17 | 2 . . 2 13 Device 9 | 1 . . 1 7 Storage 3 | 1 . . 1 1 Processor 3 | . . . . 3 Hackware . | . . . . . Protection 2 | . . . . 2 Artifact . | . . . . . Weapon 9 | 2 . . 3 4 Energy Gun 3 | 2 . . . 1 Energy Cannon 2 | . . . 1 1 Ballistic Gun . | . . . . . Ballistic Cannon 2 | . . . 1 1 Launcher 1 | . . . . 1 Special Weapon . | . . . . . Impact Weapon 1 | . . . 1 . Slashing Weapon . | . . . . . Piercing Weapon . | . . . . . Special Melee Weapon . | . . . . . Unidentified Prototypes 2 | . . . . 2 Corrupted Parts 1 | . . . . 1 System Corruption 2 | . . . . 2 Parts Lost 31 | . . . 2 29 Power 5 | . . . 1 4 Propulsion 11 | . . . . 11 Utility 8 | . . . 1 7 Weapon 7 | . . . . 7 Highest Loss Streak 13 | . . . 2 13 To Critical Strikes 1 | . . . . 1 Average Backups 7 | 3 7 8 7 8 Power . | . 1 1 . . Propulsion 1 | 1 4 4 2 . Utility 3 | . 1 2 2 6 Weapon 1 | 1 1 1 1 1 Tool/Special . | . . . . . Unused Backups 16 | . 1 . 11 4 Power 1 | . . . 1 . Propulsion 7 | . 1 . 6 . Utility 6 | . . . 2 4 Weapon 1 | . . . 1 . Tool/Special 1 | . . . 1 . Average Slot Usage (%) 95 | . 100 100 99 87 Engine 10 | . 14 14 13 4 Leg 27 | . 28 28 28 25 Device 11 | . 14 14 13 7 Storage 11 | . 14 14 14 4 Processor 4 | . . . . 12 Protection 1 | . . . . 4 Energy Gun 12 | . 28 28 15 2 Energy Cannon 4 | . . . 6 1 Ballistic Cannon 2 | . . . 1 5 Impact Weapon 4 | . . . 5 3 Peak Build Rating 71 | 9 10 10 27 71 Average Rating 29 | 6 9 10 18 59 On Entrance 11 | . 9 10 10 27 Avg Prop Armor Cover (%) 6 | . . . 7 6 Naked Turns 14 | . . . . 14 Heaviest Build 71 | 13 13 13 31 71 Greatest Support 93 | 20 20 20 39 93 Greatest Overweight (x) 8 | . . . 1 8 Average Overweight (x) . | . . . . 1 Largest Inventory Capacity 15 | 8 8 8 10 15 Average Capacity 9 | 7 8 8 8 13 Most Carried 14 | 7 8 8 10 14 Average Carried 8 | 3 7 8 8 10 Final Capacity 10 | 8 8 8 10 5 Final Carried 10 | 7 8 8 10 5 Class Distribution -------------------- 75% | Mutant 20% | Scavenger-Mutant 3% | Scavenger-Gunner Dominant Class ---------------- Mutant | -10/Materials Mutant | -10/Subcaves Mutant | -7/Scraptown Scavenger-Mutant | -5/Factory Resources | -11 -10 -10 -7 -5 ----------- Run | Yrd Mat Sub Scr Fac Matter Collected 1089 | 333 . . 194 562 Remotely . | . . . . . Salvage Created 854 | 94 48 . 61 651 Parts 34 | 7 2 . . 25 Haulers Intercepted 1 | . . . . 1 Recyclers Shooed . | . . . . . Parts Field Recycled . | . . . . . Retrieved Matter . | . . . . . Parts Self-Destructed 4 | . . 4 . . Prevented . | . . . . . Parts Restored . | . . . . . Kills | -11 -10 -10 -7 -5 ------- Run | Yrd Mat Sub Scr Fac Combat Hostiles Destroyed 28 | . 1 . 1 26 Melee 2 | . . . . 2 Guns 2 | . 1 . . 1 Cannons 9 | . . . 1 8 AOE 13 | . . . . 13 Classes Destroyed 11 | 3 1 . 1 6 Worker 4 | 1 . . . 3 Builder 2 | . . . . 2 Tunneler 1 | 1 . . . . Hauler 1 | . . . . 1 Recycler 1 | 1 . . . . Swarmer 14 | . . . . 14 Grunt 9 | . 1 . . 8 Brawler 1 | . . . . 1 Sentry 1 | . . . . 1 Programmer 2 | . . . . 2 Explorer 1 | . . . 1 . Best Kill Streak 12 | 1 1 . 1 12 Combat Bots Only 8 | . 1 . 1 8 Max Kills in Single Turn 5 | 1 1 . 1 5 Gunslinging . | . . . . . Exploded 4 | . . . . 4 Melee 1 | . . . . 1 Uniques/NPCs Destroyed . | . . . . . Combat | -11 -10 -10 -7 -5 -------- Run | Yrd Mat Sub Scr Fac Hostile Shots Fired 346 | . 6 1 19 320 Missed 98 | . 2 1 8 87 Hits 248 | . 4 . 11 233 Melee 12 | . . . 4 8 Projectile 236 | . 4 . 7 225 AOE 2 | . . . . 2 Critical Strikes 13 | . . . . 13 Part Disruptions 1 | . . . . 1 Damage Taken 5112 | . 45 . 182 4885 Core 1068 | . 10 . 32 1026 Absorbed by Shields 65 | . . . . 65 Ignored by Resistances 341 | . . . . 341 Core Remaining (%) 91 | 100 . . 83 . Volleys Fired 53 | 8 3 . 4 38 Largest 3 | 2 2 . 2 3 Hottest 187 | 80 80 . 125 187 Shots Fired 102 | 15 6 . 8 73 Gun 49 | 15 6 . . 28 Cannon 46 | . . . 8 38 Launcher 7 | . . . . 7 Special . | . . . . . Kinetic 39 | . . . 4 35 Thermal 56 | 15 6 . 4 31 Explosive 7 | . . . . 7 Electromagnetic . | . . . . . Robot Hit Streak 8 | 5 2 . 4 8 Robot Miss Streak 5 | 1 4 . 2 5 Penetration Max 1 | . . . 1 1 Secondary Targets 1 | . 1 . . . Max Gunslinging Chain 1 | . 1 . . . Shots Hit Robots 84 | 12 2 . 5 65 Core Hits 58 | 4 2 . 1 51 Critical Kills . | . . . . . Critical Parts Destroyed 1 | . . . . 1 Critical Strikes 5 | . . . . 5 Blast 4 | . . . . 4 Smash 1 | . . . . 1 Melee Attacks 25 | . . . . 25 Impact 25 | . . . . 25 Slashing . | . . . . . Piercing . | . . . . . Sneak Attacks 1 | . . . . 1 Combat Hostiles . | . . . . . Follow-up Attacks . | . . . . . Damage Inflicted 4267 | 135 55 . 171 3906 Guns 848 | 135 55 . . 658 Cannons 1141 | . . . 171 970 Explosions 1892 | . . . . 1892 Melee 386 | . . . . 386 Ramming . | . . . . . Kinetic 1021 | . . . 113 908 Thermal 968 | 135 55 . 58 720 Explosive 1892 | . . . . 1892 Electromagnetic . | . . . . . Impact 386 | . . . . 386 Slashing . | . . . . . Piercing . | . . . . . Highest Corruption 19 | . . . . 19 Average Corruption 6 | . . . . 6 Corruption Purged . | . . . . . Corruption Blocked 15 | . . . . 15 Effects 20 | . . . . 20 Message Errors 3 | . . . . 3 Matter Fused 7 | . . . . 7 Heat Flow Errors 3 | . . . . 3 Energy Discharges 3 | . . . . 3 Parts Rejected 1 | . . . . 1 Data Loss (minor) 1 | . . . . 1 Data Loss (major) 1 | . . . . 1 Alerts 1 | . . . . 1 Overload Shots . | . . . . . Overflow Damage 239 | . . . . 239 Projectiles 75 | . . . . 75 Explosions 111 | . . . . 111 Melee 53 | . . . . 53 Knockbacks 14 | . . . 2 12 Impact 1 | . . . . 1 Kinetic 11 | . . . 2 9 Secondary 2 | . . . . 2 Self-Inflicted Damage 355 | . . . . 355 Shots 4 | . . . . 4 Rammed . | . . . . . Targets Rammed . | . . . . . Kicked . | . . . . . Crushed . | . . . . . Highest Temperature 316 | 72 48 . 144 316 Average Temperature 93 | 28 24 . 65 120 Received Heat Transfer 756 | . 27 . 24 705 Siege Activations . | . . . . . Martial Activations . | . . . . . Shielding Activations . | . . . . . Robots Disrupted . | . . . . . Combat Hostiles . | . . . . . Robots Corrupted 3 | . . . . 3 Combat Hostiles 2 | . . . . 2 Parts Fried 1 | . . . . 1 Impact Corruptions 4 | . . . . 4 Robots Melted . | . . . . . Combat Hostiles . | . . . . . Parts Melted 3 | . 2 . 1 . Heat Transferred 1598 | 300 125 . 74 1099 Parts Sabotaged . | . . . . . Parts Stolen . | . . . . . Parts Stripped . | . . . . . Power Chain Reactions . | . . . . . Alert | -11 -10 -10 -7 -5 ------- Run | Yrd Mat Sub Scr Fac Maximum Alert Level 1 | . . . . 1 Low Security (%) 92 | 100 100 . . 90 Level 1 7 | . . . . 9 Level 2 . | . . . . . Level 3 . | . . . . . Level 4 . | . . . . . Level 5 . | . . . . . High Security . | . . . . . Max Security . | . . . . . Peak Influence 387 | 5 34 . . 387 Initial . | . . . . . Average 81 | . 12 . . 99 Influence Increases 993 | 15 44 . . 934 Destroy 0b10 Robot/C 540 | . 20 . . 520 Destroy 0b10 Robot/NC 45 | 15 . . . 30 Destroy Leader 92 | . 10 . . 82 Successful Hack 26 | . 14 . . 12 Disable Machine 75 | . . . . 75 Destroy Structure 140 | . . . . 140 Lose Combat Pursuer 75 | . . . . 75 Influence Decreases 726 | 15 44 . . 667 Time Decay 461 | 15 44 . . 402 Lost Part 265 | . . . . 265 Squads Dispatched 8 | . . . . 8 Investigation 2 | . . . . 2 Extermination 2 | . . . . 2 Reinforcement 2 | . . . . 2 Assault . | . . . . . Garrison 2 | . . . . 2 Intercept . | . . . . . Searches Triggered . | . . . . . Construction Impeded 2 | . . . . 2 Haulers Reinforced . | . . . . . Active Scanning Responses . | . . . . . Cargo Convoy Interrupts 1 | . . . . 1 Stealth | -11 -10 -10 -7 -5 --------- Run | Yrd Mat Sub Scr Fac Distress Signals 5 | . . . . 5 Communications Jammed . | . . . . . Distress Signals . | . . . . . Times Spotted 58 | . 2 3 6 47 Peak Tracking Total 11 | . 2 3 2 11 Tactical Retreats 3 | . . . . 3 Traps | -11 -10 -10 -7 -5 ------- Run | Yrd Mat Sub Scr Fac Traps Triggered . | . . . . . Indirectly . | . . . . . Trap Hack Attempts . | . . . . . Triggered . | . . . . . Disarmed . | . . . . . Reprogrammed . | . . . . . Reused . | . . . . . Traps Extracted . | . . . . . Installed . | . . . . . Triggered . | . . . . . Machines | -11 -10 -10 -7 -5 ---------- Run | Yrd Mat Sub Scr Fac Machines Disabled 5 | . . . . 5 Max in Single Turn 3 | . . . . 3 Garrison Access 1 | . . . . 1 Machines Repaired . | . . . . . Machines Dismantled . | . . . . . Machines Sabotaged . | . . . . . Overloaded Fab Kills . | . . . . . Hacking | -11 -10 -10 -7 -5 --------- Run | Yrd Mat Sub Scr Fac Machines Accessed 22 | . 1 . 12 9 Terminals 7 | . 1 . . 6 Fabricators . | . . . . . Repair Stations . | . . . . . Recycling Units 2 | . . . . 2 Scanalyzers . | . . . . . Garrison Access 1 | . . . . 1 Total Hacks 90 | . 1 . 74 15 Successful 82 | . 1 . 74 7 Failed 8 | . . . . 8 Catastrophic 2 | . . . . 2 Database Lockouts . | . . . . . Manual 17 | . 2 . 2 13 Terminals 12 | . 1 . . 11 Fabricators . | . . . . . Repair Stations . | . . . . . Recycling Units 3 | . . . . 3 Scanalyzers . | . . . . . Garrison Access 1 | . . . . 1 Terminal Hacks 76 | . . . 74 2 Record 66 | . . . 66 . Robot Analysis 6 | . . . 6 . Open Door 1 | . . . 1 . Open DSF 1 | . . . . 1 Recycling Unit Index 1 | . . . . 1 Proto ID Catalog 1 | . . . 1 . Fabricator Hacks . | . . . . . Repair Station Hacks . | . . . . . Recycling Unit Hacks . | . . . . . Scanalyzer . | . . . . . Garrison Access Hacks 1 | . . . . 1 Seal Access 1 | . . . . 1 Unauthorized Hacks 5 | . 1 . . 4 Terminals 4 | . 1 . . 3 Botnet 4 | . 1 . . 3 Fabricators . | . . . . . Repair Stations . | . . . . . Recycling Units 1 | . . . . 1 Fedlink 1 | . . . . 1 Scanalyzers . | . . . . . Garrison Access . | . . . . . Data Cores Recovered . | . . . . . Used . | . . . . . Hacking Detections 7 | . . . . 7 Full Trace Events 1 | . . . . 1 Feedback Events . | . . . . . Feedback Blocked . | . . . . . Robot Schematics Acquired . | . . . . . Robots Built . | . . . . . Authchips . | . . . . . Time . | . . . . . Total Robot Build Rating . | . . . . . Part Schematics Acquired . | . . . . . Parts Built . | . . . . . Authchips . | . . . . . Time . | . . . . . Total Part Build Rating . | . . . . . Part Studies Acquired . | . . . . . Parts Repaired . | . . . . . Time . | . . . . . Parts Recycled . | . . . . . Recycled Matter . | . . . . . Retrieved Matter . | . . . . . Retrieved Components . | . . . . . Parts Scanalyzed . | . . . . . Part Schematics Acquired . | . . . . . Parts Damaged . | . . . . . Bothacking | -11 -10 -10 -7 -5 ------------ Run | Yrd Mat Sub Scr Fac Used RIF Installer . | . . . . . Robots Hacked . | . . . . . Non-combat . | . . . . . Combat . | . . . . . Robot Hacks Applied . | . . . . . Relay Couplers Released . | . . . . . Fabnet Peak Effective % . | . . . . . Robots Rewired . | . . . . . Allies Hacked . | . . . . . Hacks Repelled . | . . . . . Allies | -11 -10 -10 -7 -5 -------- Run | Yrd Mat Sub Scr Fac Total Allies . | . . . . . Largest Group . | . . . . . Highest-Rated Group . | . . . . . Highest-Rated Ally . | . . . . . Initial UFD Resources 37 | . . . . 37 Total Orders . | . . . . . Ally Attacks . | . . . . . Total Damage . | . . . . . Kills . | . . . . . Allies Corrupted . | . . . . . Allies Melted 3 | . . . 2 1 Intel | -11 -10 -10 -7 -5 ------- Run | Yrd Mat Sub Scr Fac Active Infowar (turns) 2377 | 98 105 256 1918 . Terrain 2377 | 98 105 256 1918 . Robot Analysis Total 6 | . . . 6 . Derelict Logs Recovered . | . . . . . Drone Launches . | . . . . . Drone Recoveries . | . . . . . Exploration | -11 -10 -10 -7 -5 ------------- Run | Yrd Mat Sub Scr Fac Turns Passed 3718 | 177 105 256 2018 1162 Spaces Moved 2614 | 116 76 170 1604 648 Core 31 | 6 . . . 25 Treads 10 | . . . . 10 Legs 2460 | 110 76 170 1604 500 Wheels 113 | . . . . 113 Hover . | . . . . . Flight . | . . . . . Fastest Speed 50 | 50 120 120 110 50 Average Speed 123 | 116 120 120 121 132 Slowest Speed 450 | 120 120 120 190 450 Overloaded Moves . | . . . . . Propulsion Burnouts . | . . . . . Robots Hopped . | . . . . . Potential Cave-ins . | . . . . . Cave-ins Triggered 1 | . . . . 1 Exploration Rate (%) 27 | 4 13 13 90 15 Regions Visited 4 Branch Regions 2 Pre-discovered Areas 2 | . . . 2 . Known Exits Taken . | . . . . . Unknown Exits Taken 4 | 1 1 1 1 . Scrap Searched 8 | . . . 8 . Spaces Dug 8 | . . . . 8 Terrain Destroyed 67 | . . . 3 64 Melee 8 | . . . . 8 Projectile 11 | . . . 3 8 AOE 48 | . . . . 48 Terrain Rammed . | . . . . . Walls Destroyed . | . . . . . Machines Disabled . | . . . . . Actions | -11 -10 -10 -7 -5 --------- Run | Yrd Mat Sub Scr Fac Total 2944 | 141 85 222 1671 825 Wait 93 | . . 53 . 40 Move 2610 | 115 75 169 1603 648 Hop . | . . . . . Pick Up 48 | 10 4 . 18 16 Fast Attach 22 | 5 . . 6 11 Attach 25 | 2 . . 2 21 Detach 3 | . . . . 3 Swap 21 | . . . 10 11 Drop 40 | 1 3 . 24 12 Fire 53 | 8 3 . 4 38 Melee 25 | . . . . 25 Ram . | . . . . . Kick . | . . . . . Crush . | . . . . . Escape Stasis . | . . . . . Rewire 4 | . . . 4 . Trap . | . . . . . Miscellaneous . | . . . . . Route ------- -11/Scrapyard -10/Materials -10/Subcaves -7/Scraptown (discovered 2 exits: *Fac x2) -5/Factory History --------- Turn | Location | Event 5 | -11/Scrapyard | Discovered new exit (range 15) 178 | -11/Scrapyard | Entered Materials 179 | -10/Materials | Met a group of wandering Federalists 261 | -10/Materials | Discovered new exit (range 13) 283 | -10/Materials | Entered Subcaves 284 | -10/Subcaves | Continued accompanying wandering Federalists (5) 300 | -10/Subcaves | Build established: Mutant 527 | -10/Subcaves | Wandering Federalist uncovered a shortcut to Scraptown 539 | -10/Subcaves | Entered Scraptown 778 | -7/Scraptown | Discovered new exit (range 5) 945 | -7/Scraptown | Visited Bundlers 1055 | -7/Scraptown | Visited Awakened 1082 | -7/Scraptown | Visited The Evicted 1114 | -7/Scraptown | Visited UFD Registry 1114 | -7/Scraptown | Registered with UFD as "Protocore" 1166 | -7/Scraptown | Visited Science Guys 1229 | -7/Scraptown | Visited Cave Peace 1309 | -7/Scraptown | Visited Cyclists 1337 | -7/Scraptown | Entered Cyclist Reading Room 1342 | -7/Scraptown | Learned location of Zion (-6) 1760 | -7/Scraptown | Visited Curators Association 1792 | -7/Scraptown | Visited Abandonware Association 1801 | -7/Scraptown | Learned abandonware demo "OVRCLOCK.EXE" 1815 | -7/Scraptown | Learned abandonware demo "REVENGE.EXE" 1815 | -7/Scraptown | Learned abandonware demo "REBOOT5.EXE" 1854 | -7/Scraptown | Visited Sword Containment 1918 | -7/Scraptown | Discovered new exit (range 3) 1988 | -7/Scraptown | Visited Analyses Database 2013 | -7/Scraptown | Visited Supply Room 2047 | -7/Scraptown | Visited DA-N13 Charitable Foundation 2079 | -7/Scraptown | Visited Scrapoid Research Area 2134 | -7/Scraptown | Visited Derelict Rescue Squad 2142 | -7/Scraptown | Found DRS Beacon 2204 | -7/Scraptown | Met Optimus 2204 | -7/Scraptown | Accepted into 0bPrime 2330 | -7/Scraptown | Civil war broke out across Scraptown 2472 | -7/Scraptown | Lost 9 allies 2557 | -7/Scraptown | Entered Factory 2557 | -5/Factory | Evolved 10 slots: Power x1, Propulsion x4, Utility x4, Weapon x1 2568 | -5/Factory | Identified exit to DSF 2953 | -5/Factory | Crushed by falling debris 2984 | -5/Factory | Lost 4 parts (2n2w) 3316 | -5/Factory | Build established: Scavenger-Mutant 3433 | -5/Factory | Cargo convoy interrupted 3552 | -5/Factory | Garrison activated, responded to threat 3557 | -5/Factory | System corruption reached 10% 3593 | -5/Factory | Lost 10 parts (3p4n2u1w) 3641 | -5/Factory | Destroyed 8 combat bots 3642 | -5/Factory | Loaded intel: 8 recycling unit locations 3686 | -5/Factory | Core integrity fell below 50% 3718 | -5/Factory | Core integrity fell below 20% 3719 | -5/Factory | Destroyed by H-71 Marshal with Heavy Mass Driver Last Messages --------------- [Achievement: A Problem For Future Me] 03687_ Door malfunctions. 03690_ Missile Launcher destroyed. 03693_ Carbon-fiber Leg destroyed. 03697_ Critical hit (Burn: +37). 03697_ Adv. Shield Generator destroyed. 03698_ Dropped DRS Beacon. 03698_ Acquired DRS Beacon. 03699_ Mak. Salvage Targeting Computer destroyed. 03699_ Dropped Imp. Signal Interpreter. 03700_ Dropped Imp. Recalibrator. 03700_ Dropped Imp. Heat Sink. 03701_ Dropped Lrg. Storage Unit. 03704_ Acquired Prototype Device. 03704_ Identified Prc. Matter Filter. 03707_ System corrupted: Heat flow error (+180). 03708_ Dropped Prc. Matter Filter. 03717_ Critical hit (Burn: +37). 03717_ Knocked back. 03717_ Acquired 1 matter. Map ----- +----------------------------------------------------+ | ?????????????????????????????????????????????????? | | ?????????????????????????????????????????????????? | | ?????????????##############??????????????????????? | | ?????????????# #??????????????????????? | | ?????????????# #??????????????????????? | | ?????????????# #??????????????????????? | | ?????????????# #??????????????????????? | | ?????????????# #??????????????????????? | | ?????????????# #??????????????????????? | | #????????????# #??????????????????????? | | ? """???????# #??????????????????????? | | # """???????# #??????????????????????? | | ? ??????# #??????????????????????? | | ??? ??????# ! #??????????????????????? | | ????? ?????# #??????????????????????? | | #######/########p#################+##????????????? | | !g g g ???????????? | | !! g ???????????? | | ! H??????????? | | ???????????? | | ^ ??????????? | | ??????????? | | % ???????????? | | ####################% ######?????????????? | | ## "" ##?# #??????????????????? | | # #?# @ #??????????????????? | | % # ##?# #??????????????????? | | # #?# + ?????????????????? | | # #?# # " ???????????????? | | %/ ##?# #?" "??????????????? | | # #??# w #?? ???????????????? | | # " #??# #??????????????????? | | # " #?# #??????????????????? | | # " ##?# #??????????????????? | | ##### "##??#k #??????????????????? | | ????# ##???#g #??????????????????? | | ????####+#########????# #??????????????????? | | ?????????????????????? #??????????????????? | | ??????????????????????# #??????????????????? | | ??????????????????????# ???????????????????? | | ??????????????????????? ?????????????????????? | | ?????????????????????????????????????????????????? | | ?????????????????????????????????????????????????? | | ?????????????????????????????????????????????????? | | ?????????????????????????????????????????????????? | | ?????????????????????????????????????????????????? | | ?????????????????????????????????????????????????? | | ?????????????????????????????????????????????????? | | ?????????????????????????????????????????????????? | | ?????????????????????????????????????????????????? | +----------------------------------------------------+ Best States ------------- Heat Dissipation 67 Energy Generation 23 Energy Capacity 250 Matter Stores 300 Matter Capacity 300 Sight Range 16 Terrain Scan Range 16 Terrain Scan Density 10 Corruption Block 15 Armor Coverage 600 Resistance: KI 30 Evasion (%) 55 Targeting Accuracy 5 Recoil Reduction 1 Salvage Targeting 4 Item Schematics ----------------- None Robot Schematics ------------------ None Fabricated ------------ Nothing Repaired ---------- Nothing Studied --------- None Alien Tech Used ----------------- None Achievements -------------- A Problem For Future Me Armchair Analyst Bob, First Of His Name Brute Force Bumper Bots Civilization 2243 Jackpot Link The Feds Resistances Are Futile Strength In Numbers Throw Away The Key Uncivil War Challenges ------------ None Game ------ Seed MicroCoolantTether Manual? 0 Play Time 01:26:03 Cumulative 38.2 hours Start 2026.07.23 @ 17:43:43 End 2026.07.23 @ 19:20:20 Sessions 1 Manual Loads 0 Difficulty Rogue Special Mode None Game No. 21 Rogue 21 Adventurer 0 Explorer 0 Win Type - Total 0 Types 0/0/0/0/0/0/0/0/0/0 Lore% 23 Gallery% 30 Achievement% 19 Wizard Run 0 Options --------- Layout 0 ASCII 0 Keyboard 0 Movement Mouse Keybinds 0 Fullscreen 2 Font 24/Smallcaps Map View 76x50 Zoom Use 0% Tactical HUD 1 Map Filters NONE Filters NONE Steam 1 RUN: 172bdca6-0b93-4d57-b681-f59381be101a